[Event "Titled Tuesday Blitz August 02 Late 2022"]
[White "Steinberg, Nitzan"]
[Black "Mardov, Dimitar"]
[WhiteFideId "2801795"]
[BlackFideId "30919495"]
[WhiteElo "2471"]
[BlackElo "2185"]
[Result "0-1"]
[Round "11"]
[TimeControl "180+1"]
[Date "2022.08.02"]
[WhiteClock "0:01:28"]
[BlackClock "0:00:19"]

1. d4 {[%clk 0:03:00]}  Nf6 {[%clk 0:02:59]} 2. Nf3 {[%clk 0:03:01]}  d5 {[%clk 0:02:59]} 3. c4 {[%clk 0:03:01]}  e6 {[%clk 0:03:00]} 4. Nc3 {[%clk 0:03:01]}  Be7 {[%clk 0:02:58]} 5. cxd5 {[%clk 0:03:01]}  exd5 {[%clk 0:02:57]} 6. Bg5 {[%clk 0:03:01]}  O-O {[%clk 0:02:58]} 7. Qc2 {[%clk 0:03:01]}  c6 {[%clk 0:02:58]} 8. e3 {[%clk 0:03:02]}  Re8 {[%clk 0:02:58]} 9. Bd3 {[%clk 0:03:02]}  Nbd7 {[%clk 0:02:59]} 10. O-O {[%clk 0:03:01]}  Nf8 {[%clk 0:02:59]} 11. h3 {[%clk 0:02:53]}  g6 {[%clk 0:02:58]} 12. Bf4 {[%clk 0:02:52]}  Ne6 {[%clk 0:02:54]} 13. Bh2 {[%clk 0:02:52]}  Ng7 {[%clk 0:02:54]} 14. Rab1 {[%clk 0:02:50]}  a5 {[%clk 0:02:53]} 15. a3 {[%clk 0:02:51]}  Bf5 {[%clk 0:02:52]} 16. b4 {[%clk 0:02:51]}  axb4 {[%clk 0:02:51]} 17. axb4 {[%clk 0:02:52]}  Bxd3 {[%clk 0:02:32]} 18. Qxd3 {[%clk 0:02:53]}  Ne6 {[%clk 0:02:21]} 19. b5 {[%clk 0:02:50]}  c5 {[%clk 0:02:17]} 20. dxc5 {[%clk 0:02:48]}  Nxc5 {[%clk 0:02:15]} 21. Qd1 {[%clk 0:02:47]}  Nce4 {[%clk 0:02:10]} 22. Nxe4 {[%clk 0:02:44]}  Nxe4 {[%clk 0:02:10]} 23. Be5 {[%clk 0:02:40]}  Bf6 {[%clk 0:01:50]} 24. Bd4 {[%clk 0:02:39]}  Ra2 {[%clk 0:01:39]} 25. Qb3 {[%clk 0:02:36]}  Qa5 {[%clk 0:01:32]} 26. Qxd5 {[%clk 0:02:33]}  Bxd4 {[%clk 0:01:31]} 27. Qxd4 {[%clk 0:02:28]}  Nc3 {[%clk 0:01:30]} 28. Qh4 {[%clk 0:02:07]}  Nxb1 {[%clk 0:01:28]} 29. Rxb1 {[%clk 0:02:08]}  Ra1 {[%clk 0:01:25]} 30. Rxa1 {[%clk 0:02:08]}  Qxa1+ {[%clk 0:01:26]} 31. Kh2 {[%clk 0:02:09]}  Qb2 {[%clk 0:01:16]} 32. Nd4 {[%clk 0:02:09]}  Qb4 {[%clk 0:01:09]} 33. g3 {[%clk 0:01:59]}  Qe7 {[%clk 0:01:02]} 34. Qf4 {[%clk 0:01:57]}  Kg7 {[%clk 0:00:58]} 35. h4 {[%clk 0:01:57]}  Qf6 {[%clk 0:00:56]} 36. Qxf6+ {[%clk 0:01:50]}  Kxf6 {[%clk 0:00:57]} 37. Kg2 {[%clk 0:01:50]}  Ke5 {[%clk 0:00:56]} 38. Nf3+ {[%clk 0:01:49]}  Kd5 {[%clk 0:00:53]} 39. Ng5 {[%clk 0:01:44]}  f6 {[%clk 0:00:53]} 40. Nf3 {[%clk 0:01:41]}  Kc5 {[%clk 0:00:43]} 41. Nd4 {[%clk 0:01:41]}  Re4 {[%clk 0:00:38]} 42. h5 {[%clk 0:01:27]}  Rxd4 {[%clk 0:00:35]} 43. exd4+ {[%clk 0:01:27]}  Kxd4 {[%clk 0:00:31]} 44. Kf3 {[%clk 0:01:25]}  Kc5 {[%clk 0:00:22]} 45. Ke4 {[%clk 0:01:26]}  Kxb5 {[%clk 0:00:22]} 46. Kd5 {[%clk 0:01:24]}  gxh5 {[%clk 0:00:21]} 47. Ke6 {[%clk 0:01:24]}  Kc4 {[%clk 0:00:21]} 48. Kxf6 {[%clk 0:01:25]}  b5 {[%clk 0:00:22]} 49. f4 {[%clk 0:01:25]}  b4 {[%clk 0:00:22]} 50. f5 {[%clk 0:01:26]}  b3 {[%clk 0:00:23]} 51. Kg7 {[%clk 0:01:26]}  b2 {[%clk 0:00:24]} 52. f6 {[%clk 0:01:27]}  b1=Q {[%clk 0:00:24]} 53. f7 {[%clk 0:01:28]}  Qg6+ {[%clk 0:00:24]} 54. Kf8 {[%clk 0:01:28]}  Kd5 {[%clk 0:00:22]} 55. Ke7 {[%clk 0:01:28]}  Qd6+ {[%clk 0:00:21]} 56. Ke8 {[%clk 0:01:28]}  Ke6 {[%clk 0:00:19]} 0-1


[Site "https://www.chess.com"]

[Event "Titled Tuesday Blitz August 02 Late 2022"]
[White "Swiercz, Dariusz"]
[Black "Tica, Sven"]
[WhiteFideId "1126881"]
[BlackFideId "14526948"]
[WhiteElo "2627"]
[BlackElo "2346"]
[Result "1-0"]
[Round "11"]
[TimeControl "180+1"]
[Date "2022.08.02"]
[WhiteClock "0:00:09"]
[BlackClock "0:00:09"]

1. Nf3 {[%clk 0:02:41]}  g6 {[%clk 0:03:00]} 2. d4 {[%clk 0:02:38]}  Bg7 {[%clk 0:03:01]} 3. Bf4 {[%clk 0:02:38]}  d6 {[%clk 0:03:01]} 4. e3 {[%clk 0:02:38]}  Nd7 {[%clk 0:03:01]} 5. h3 {[%clk 0:02:38]}  e5 {[%clk 0:02:49]} 6. Bh2 {[%clk 0:02:38]}  Ne7 {[%clk 0:02:49]} 7. Nc3 {[%clk 0:02:37]}  O-O {[%clk 0:02:48]} 8. Bc4 {[%clk 0:02:37]}  exd4 {[%clk 0:02:36]} 9. exd4 {[%clk 0:02:36]}  Nb6 {[%clk 0:02:10]} 10. Bd3 {[%clk 0:02:35]}  Nf5 {[%clk 0:02:06]} 11. Ne2 {[%clk 0:02:28]}  Qf6 {[%clk 0:01:57]} 12. O-O {[%clk 0:02:22]}  Bd7 {[%clk 0:01:54]} 13. c3 {[%clk 0:02:18]}  Bc6 {[%clk 0:01:51]} 14. Ng3 {[%clk 0:02:05]}  Nxg3 {[%clk 0:01:40]} 15. fxg3 {[%clk 0:02:06]}  Qe7 {[%clk 0:01:34]} 16. Qd2 {[%clk 0:02:03]}  Rae8 {[%clk 0:01:33]} 17. Rae1 {[%clk 0:02:02]}  Qd7 {[%clk 0:01:33]} 18. g4 {[%clk 0:02:00]}  Bd5 {[%clk 0:01:26]} 19. b3 {[%clk 0:01:49]}  c5 {[%clk 0:01:27]} 20. Qf2 {[%clk 0:00:53]}  Rxe1 {[%clk 0:01:13]} 21. Rxe1 {[%clk 0:00:53]}  cxd4 {[%clk 0:01:08]} 22. Nxd4 {[%clk 0:00:39]}  a6 {[%clk 0:00:46]} 23. Bf4 {[%clk 0:00:37]}  Bc6 {[%clk 0:00:43]} 24. c4 {[%clk 0:00:28]}  Nc8 {[%clk 0:00:41]} 25. Nxc6 {[%clk 0:00:21]}  bxc6 {[%clk 0:00:36]} 26. Qe2 {[%clk 0:00:21]}  a5 {[%clk 0:00:32]} 27. Bd2 {[%clk 0:00:20]}  d5 {[%clk 0:00:28]} 28. Kh1 {[%clk 0:00:16]}  a4 {[%clk 0:00:26]} 29. Bb4 {[%clk 0:00:14]}  Rd8 {[%clk 0:00:24]} 30. Ba5 {[%clk 0:00:14]}  Rf8 {[%clk 0:00:24]} 31. Bb4 {[%clk 0:00:14]}  Rd8 {[%clk 0:00:24]} 32. cxd5 {[%clk 0:00:13]}  cxd5 {[%clk 0:00:22]} 33. Bb5 {[%clk 0:00:13]}  Qb7 {[%clk 0:00:17]} 34. bxa4 {[%clk 0:00:12]}  Na7 {[%clk 0:00:16]} 35. g5 {[%clk 0:00:11]}  h5 {[%clk 0:00:11]} 36. gxh6 {[%clk 0:00:11]}  Bxh6 {[%clk 0:00:11]} 37. Qe7 {[%clk 0:00:10]}  Rb8 {[%clk 0:00:10]} 38. Qxb7 {[%clk 0:00:08]}  Rxb7 {[%clk 0:00:11]} 39. Re7 {[%clk 0:00:08]}  Rxe7 {[%clk 0:00:08]} 40. Bxe7 {[%clk 0:00:09]}  Bd2 {[%clk 0:00:09]} 41. Bc5 {[%clk 0:00:09]}  Nc8 {[%clk 0:00:09]} 42. Bd7 {[%clk 0:00:09]} 1-0


[Site "https://www.chess.com"]

[Event "Titled Tuesday Blitz August 02 Late 2022"]
[White "Vasquez Schroeder, Rodrigo"]
[Black "Yanchenko, Roman"]
[WhiteFideId "3400042"]
[BlackFideId "4137329"]
[WhiteElo "2567"]
[BlackElo "2514"]
[Result "1/2-1/2"]
[Round "11"]
[TimeControl "180+1"]
[Date "2022.08.02"]
[WhiteClock "0:00:18"]
[BlackClock "0:00:23"]

1. e4 {[%clk 0:03:00]}  e6 {[%clk 0:03:00]} 2. d4 {[%clk 0:03:00]}  d5 {[%clk 0:03:01]} 3. Nc3 {[%clk 0:03:00]}  Bb4 {[%clk 0:03:00]} 4. e5 {[%clk 0:03:01]}  Ne7 {[%clk 0:03:00]} 5. Bd2 {[%clk 0:03:00]}  b6 {[%clk 0:03:00]} 6. Bb5+ {[%clk 0:03:00]}  c6 {[%clk 0:02:59]} 7. Ba4 {[%clk 0:03:00]}  O-O {[%clk 0:02:56]} 8. Nce2 {[%clk 0:02:59]}  Bxd2+ {[%clk 0:02:55]} 9. Qxd2 {[%clk 0:03:00]}  c5 {[%clk 0:02:53]} 10. c3 {[%clk 0:03:00]}  Ba6 {[%clk 0:02:50]} 11. Nf3 {[%clk 0:03:00]}  Nbc6 {[%clk 0:02:49]} 12. O-O {[%clk 0:03:00]}  h6 {[%clk 0:02:47]} 13. Rfe1 {[%clk 0:02:58]}  Rc8 {[%clk 0:02:46]} 14. Ng3 {[%clk 0:02:55]}  Ng6 {[%clk 0:02:34]} 15. Rac1 {[%clk 0:02:52]}  Nh4 {[%clk 0:02:32]} 16. Nxh4 {[%clk 0:02:43]}  Qxh4 {[%clk 0:02:33]} 17. f4 {[%clk 0:02:41]}  g6 {[%clk 0:02:19]} 18. Qf2 {[%clk 0:02:35]}  Ne7 {[%clk 0:02:13]} 19. Rcd1 {[%clk 0:02:20]}  cxd4 {[%clk 0:02:10]} 20. Rxd4 {[%clk 0:02:20]}  Rc4 {[%clk 0:02:06]} 21. Red1 {[%clk 0:02:16]}  Nf5 {[%clk 0:01:59]} 22. Nxf5 {[%clk 0:02:15]}  Qxf2+ {[%clk 0:01:58]} 23. Kxf2 {[%clk 0:02:15]}  gxf5 {[%clk 0:01:59]} 24. Bb3 {[%clk 0:02:13]}  Rxd4 {[%clk 0:01:58]} 25. Rxd4 {[%clk 0:02:00]}  Bb5 {[%clk 0:01:58]} 26. h3 {[%clk 0:01:47]}  Kg7 {[%clk 0:01:50]} 27. g4 {[%clk 0:01:47]}  fxg4 {[%clk 0:01:50]} 28. hxg4 {[%clk 0:01:48]}  f6 {[%clk 0:01:51]} 29. exf6+ {[%clk 0:01:46]}  Kxf6 {[%clk 0:01:49]} 30. Kg3 {[%clk 0:01:43]}  Bc6 {[%clk 0:01:38]} 31. Rd2 {[%clk 0:01:27]}  Rd8 {[%clk 0:01:25]} 32. Rh2 {[%clk 0:01:25]}  Kg7 {[%clk 0:01:23]} 33. Bc2 {[%clk 0:01:23]}  Rd7 {[%clk 0:01:11]} 34. g5 {[%clk 0:01:22]}  hxg5 {[%clk 0:01:11]} 35. fxg5 {[%clk 0:01:20]}  e5 {[%clk 0:01:11]} 36. Bf5 {[%clk 0:01:17]}  Rf7 {[%clk 0:01:10]} 37. Kg4 {[%clk 0:01:13]}  d4 {[%clk 0:01:04]} 38. cxd4 {[%clk 0:01:10]}  exd4 {[%clk 0:01:05]} 39. Rh7+ {[%clk 0:01:06]}  Kf8 {[%clk 0:01:05]} 40. Rh6 {[%clk 0:01:01]}  Bd7 {[%clk 0:00:57]} 41. Rh8+ {[%clk 0:00:54]}  Ke7 {[%clk 0:00:57]} 42. Bxd7 {[%clk 0:00:54]}  Kxd7 {[%clk 0:00:58]} 43. g6 {[%clk 0:00:55]}  Rf1 {[%clk 0:00:53]} 44. Kg5 {[%clk 0:00:54]}  Ke6 {[%clk 0:00:41]} 45. Rd8 {[%clk 0:00:53]}  Rg1+ {[%clk 0:00:39]} 46. Kh6 {[%clk 0:00:52]}  Kf6 {[%clk 0:00:39]} 47. Rf8+ {[%clk 0:00:50]}  Ke5 {[%clk 0:00:38]} 48. g7 {[%clk 0:00:50]}  d3 {[%clk 0:00:37]} 49. g8=Q {[%clk 0:00:48]}  Rxg8 {[%clk 0:00:34]} 50. Rxg8 {[%clk 0:00:49]}  Ke4 {[%clk 0:00:31]} 51. Rd8 {[%clk 0:00:49]}  Ke3 {[%clk 0:00:31]} 52. Kg5 {[%clk 0:00:50]}  d2 {[%clk 0:00:32]} 53. Kf5 {[%clk 0:00:47]}  Ke2 {[%clk 0:00:31]} 54. Ke4 {[%clk 0:00:37]}  a5 {[%clk 0:00:25]} 55. a4 {[%clk 0:00:34]}  d1=Q {[%clk 0:00:22]} 56. Rxd1 {[%clk 0:00:34]}  Kxd1 {[%clk 0:00:23]} 57. Kd3 {[%clk 0:00:28]}  Kc1 {[%clk 0:00:23]} 58. Kc3 {[%clk 0:00:29]}  Kb1 {[%clk 0:00:23]} 59. b4 {[%clk 0:00:17]}  axb4+ {[%clk 0:00:22]} 60. Kxb4 {[%clk 0:00:17]}  Kb2 {[%clk 0:00:23]} 61. Kb5 {[%clk 0:00:17]}  Kb3 {[%clk 0:00:23]} 62. Kxb6 {[%clk 0:00:18]}  Kxa4 {[%clk 0:00:23]} 1/2-1/2


[Site "https://www.chess.com"]

[Event "Titled Tuesday Blitz August 02 Late 2022"]
[White "Vazquez Espino, Uriel"]
[Black "Barria Zuniga, Daniel"]
[WhiteFideId "5119138"]
[BlackFideId "3400816"]
[WhiteElo "2405"]
[BlackElo "2414"]
[Result "0-1"]
[Round "11"]
[TimeControl "180+1"]
[Date "2022.08.02"]
[WhiteClock "0:01:52"]
[BlackClock "0:01:46"]

1. e4 {[%clk 0:03:00]}  Nf6 {[%clk 0:02:52]} 2. e5 {[%clk 0:02:58]}  Nd5 {[%clk 0:02:52]} 3. Nc3 {[%clk 0:02:58]}  Nxc3 {[%clk 0:02:48]} 4. dxc3 {[%clk 0:02:59]}  d6 {[%clk 0:02:49]} 5. Qe2 {[%clk 0:03:00]}  dxe5 {[%clk 0:02:46]} 6. Qxe5 {[%clk 0:03:00]}  Nc6 {[%clk 0:02:44]} 7. Bb5 {[%clk 0:03:00]}  Bd7 {[%clk 0:02:43]} 8. Qg3 {[%clk 0:02:56]}  a6 {[%clk 0:02:40]} 9. Bd3 {[%clk 0:02:45]}  e5 {[%clk 0:02:29]} 10. Nf3 {[%clk 0:02:38]}  Qe7 {[%clk 0:02:22]} 11. Bd2 {[%clk 0:02:21]}  e4 {[%clk 0:02:16]} 12. O-O-O {[%clk 0:02:16]}  exd3 {[%clk 0:02:15]} 13. Rhe1 {[%clk 0:02:15]}  Be6 {[%clk 0:02:14]} 14. cxd3 {[%clk 0:02:06]}  O-O-O {[%clk 0:02:13]} 15. Ng5 {[%clk 0:02:01]}  Qd7 {[%clk 0:02:00]} 16. Bf4 {[%clk 0:01:52]}  Bxa2 {[%clk 0:01:46]} 0-1


[Site "https://www.chess.com"]

[Event "Titled Tuesday Blitz August 02 Late 2022"]
[White "Vovk, Orest"]
[Black "Rustemov, Alexander"]
[WhiteFideId "14113490"]
[BlackFideId "4119002"]
[WhiteElo "2203"]
[BlackElo "2756"]
[Result "1-0"]
[Round "11"]
[TimeControl "180+1"]
[Date "2022.08.02"]
[WhiteClock "0:00:11"]
[BlackClock "0:00:09"]

1. h4 {[%clk 0:02:50]}  e5 {[%clk 0:02:56]} 2. h5 {[%clk 0:02:50]}  d5 {[%clk 0:02:53]} 3. h6 {[%clk 0:02:50]}  g6 {[%clk 0:02:49]} 4. d4 {[%clk 0:02:50]}  Nc6 {[%clk 0:02:42]} 5. dxe5 {[%clk 0:02:46]}  Nxe5 {[%clk 0:02:42]} 6. Nf3 {[%clk 0:02:47]}  Nxf3+ {[%clk 0:02:39]} 7. gxf3 {[%clk 0:02:47]}  Nf6 {[%clk 0:02:37]} 8. Bg5 {[%clk 0:02:44]}  Be7 {[%clk 0:02:37]} 9. Qd4 {[%clk 0:02:43]}  c5 {[%clk 0:02:33]} 10. Qe5 {[%clk 0:02:43]}  O-O {[%clk 0:02:28]} 11. Nc3 {[%clk 0:02:37]}  Be6 {[%clk 0:02:22]} 12. O-O-O {[%clk 0:02:33]}  d4 {[%clk 0:02:01]} 13. Ne4 {[%clk 0:02:30]}  Ne8 {[%clk 0:02:00]} 14. Bxe7 {[%clk 0:02:23]}  Qxe7 {[%clk 0:02:01]} 15. Qxc5 {[%clk 0:02:23]}  Qxc5 {[%clk 0:01:18]} 16. Nxc5 {[%clk 0:02:24]}  Nd6 {[%clk 0:01:11]} 17. Nxe6 {[%clk 0:02:17]}  fxe6 {[%clk 0:01:12]} 18. Rxd4 {[%clk 0:02:17]}  Nf5 {[%clk 0:01:12]} 19. Rd7 {[%clk 0:02:13]}  Rf7 {[%clk 0:01:12]} 20. Rxf7 {[%clk 0:02:08]}  Kxf7 {[%clk 0:01:13]} 21. e3 {[%clk 0:02:06]}  g5 {[%clk 0:01:12]} 22. Bd3 {[%clk 0:02:01]}  Kf6 {[%clk 0:01:06]} 23. Be4 {[%clk 0:01:26]}  Rb8 {[%clk 0:01:02]} 24. Rd1 {[%clk 0:01:25]}  Ke7 {[%clk 0:00:59]} 25. Bxf5 {[%clk 0:01:19]}  exf5 {[%clk 0:00:59]} 26. Rd5 {[%clk 0:01:19]}  Ke6 {[%clk 0:00:59]} 27. Rc5 {[%clk 0:01:18]}  Kf6 {[%clk 0:00:55]} 28. Rd5 {[%clk 0:01:07]}  Ke6 {[%clk 0:00:53]} 29. c4 {[%clk 0:01:06]}  Rg8 {[%clk 0:00:48]} 30. e4 {[%clk 0:01:01]}  fxe4 {[%clk 0:00:43]} 31. fxe4 {[%clk 0:01:01]}  g4 {[%clk 0:00:38]} 32. Kd2 {[%clk 0:00:52]}  Rg6 {[%clk 0:00:38]} 33. Rh5 {[%clk 0:00:50]}  Rf6 {[%clk 0:00:36]} 34. Rf5 {[%clk 0:00:32]}  Rxh6 {[%clk 0:00:35]} 35. Rg5 {[%clk 0:00:28]}  Rf6 {[%clk 0:00:34]} 36. Rxg4 {[%clk 0:00:27]}  Rxf2+ {[%clk 0:00:34]} 37. Kc3 {[%clk 0:00:28]}  Rf7 {[%clk 0:00:24]} 38. Rh4 {[%clk 0:00:23]}  Ke5 {[%clk 0:00:24]} 39. c5 {[%clk 0:00:23]}  Rc7 {[%clk 0:00:18]} 40. b4 {[%clk 0:00:22]}  b6 {[%clk 0:00:18]} 41. Kc4 {[%clk 0:00:22]}  bxc5 {[%clk 0:00:18]} 42. bxc5 {[%clk 0:00:23]}  Kf6 {[%clk 0:00:16]} 43. Kd5 {[%clk 0:00:22]}  Kg5 {[%clk 0:00:15]} 44. Rh2 {[%clk 0:00:18]}  Rd7+ {[%clk 0:00:15]} 45. Kc6 {[%clk 0:00:18]}  Rd1 {[%clk 0:00:15]} 46. Rxh7 {[%clk 0:00:17]}  Kf4 {[%clk 0:00:13]} 47. Rxa7 {[%clk 0:00:17]}  Kxe4 {[%clk 0:00:13]} 48. a4 {[%clk 0:00:16]}  Ke5 {[%clk 0:00:12]} 49. a5 {[%clk 0:00:12]}  Ke6 {[%clk 0:00:12]} 50. a6 {[%clk 0:00:12]}  Ra1 {[%clk 0:00:12]} 51. Ra8 {[%clk 0:00:12]}  Ke7 {[%clk 0:00:13]} 52. a7 {[%clk 0:00:12]}  Kf7 {[%clk 0:00:09]} 53. Rh8 {[%clk 0:00:11]} 1-0


[Site "https://www.chess.com"]

[Event "Titled Tuesday Blitz August 02 Late 2022"]
[White "Zong, Davis"]
[Black "Romanchuk, Viktor"]
[WhiteFideId "30903955"]
[BlackFideId "14109271"]
[WhiteElo "2061"]
[BlackElo "2242"]
[Result "1/2-1/2"]
[Round "11"]
[TimeControl "180+1"]
[Date "2022.08.02"]
[WhiteClock "0:00:22"]
[BlackClock "0:00:45"]

1. d4 {[%clk 0:03:00]}  d5 {[%clk 0:02:59]} 2. c4 {[%clk 0:03:01]}  c6 {[%clk 0:02:58]} 3. Nf3 {[%clk 0:03:01]}  Nf6 {[%clk 0:02:59]} 4. Nc3 {[%clk 0:03:02]}  e6 {[%clk 0:02:58]} 5. e3 {[%clk 0:03:02]}  Nbd7 {[%clk 0:02:58]} 6. Bd3 {[%clk 0:03:02]}  Be7 {[%clk 0:02:57]} 7. O-O {[%clk 0:03:02]}  O-O {[%clk 0:02:57]} 8. e4 {[%clk 0:03:01]}  dxe4 {[%clk 0:02:58]} 9. Nxe4 {[%clk 0:03:02]}  c5 {[%clk 0:02:58]} 10. b3 {[%clk 0:02:57]}  b6 {[%clk 0:02:57]} 11. Bb2 {[%clk 0:02:56]}  Bb7 {[%clk 0:02:58]} 12. Qe2 {[%clk 0:02:57]}  Re8 {[%clk 0:02:55]} 13. Rfd1 {[%clk 0:02:56]}  Qc7 {[%clk 0:02:56]} 14. Rac1 {[%clk 0:02:55]}  Rad8 {[%clk 0:02:55]} 15. dxc5 {[%clk 0:02:52]}  Nxc5 {[%clk 0:02:45]} 16. Nxf6+ {[%clk 0:02:52]}  Bxf6 {[%clk 0:02:43]} 17. Bxf6 {[%clk 0:02:51]}  Rxd3 {[%clk 0:02:24]} 18. Rxd3 {[%clk 0:02:45]}  Nxd3 {[%clk 0:02:24]} 19. Qxd3 {[%clk 0:02:42]}  gxf6 {[%clk 0:02:24]} 20. Rd1 {[%clk 0:02:39]}  Bc6 {[%clk 0:02:08]} 21. b4 {[%clk 0:02:16]}  Kg7 {[%clk 0:01:57]} 22. Nd4 {[%clk 0:02:11]}  Rc8 {[%clk 0:01:52]} 23. c5 {[%clk 0:01:39]}  bxc5 {[%clk 0:01:50]} 24. bxc5 {[%clk 0:01:40]}  Bd5 {[%clk 0:01:48]} 25. Rc1 {[%clk 0:01:37]}  Qa5 {[%clk 0:01:44]} 26. Qg3+ {[%clk 0:01:23]}  Kh8 {[%clk 0:01:42]} 27. Qf4 {[%clk 0:01:15]}  Kg7 {[%clk 0:01:28]} 28. c6 {[%clk 0:01:00]}  Bxc6 {[%clk 0:01:07]} 29. Qg3+ {[%clk 0:00:39]}  Kh8 {[%clk 0:01:05]} 30. Qf4 {[%clk 0:00:38]}  Kg7 {[%clk 0:00:45]} 31. Qg3+ {[%clk 0:00:22]} 1/2-1/2